bitfinex/quotes_BTCUSD_20251207
["timestamp","ask_amount","ask_price","bid_price","bid_amount"]
[1765092002213,5.66154646,89481.0,89480.0,0.00344176]
[1765092002535,2.51304646,89481.0,89480.0,0.00344176]
[1765092002739,2.72307558,89481.0,89480.0,0.00344176]
[1765092003557,2.66313693,89481.0,89480.0,0.00344176]
[1765092003759,0.82593693,89481.0,89480.0,0.00344176]
[1765092003964,3.05743693,89481.0,89480.0,0.00344176]
[1765092004814,4.17313693,89481.0,89480.0,0.00344176]
[1765092005016,3.95343693,89481.0,89480.0,0.00344176]
[1765092005673,1.99580781,89481.0,89480.0,0.00344176]
[1765092005973,3.01400781,89481.0,89480.0,0.00344176]
[1765092006185,2.95796781,89481.0,89480.0,0.00344176]
[1765092006396,1.48720781,89481.0,89480.0,0.00344176]
[1765092007099,5.81370781,89481.0,89480.0,0.00344176]
[1765092007254,5.92341287,89481.0,89480.0,0.00344176]
[1765092015980,0.92341287,89481.0,89480.0,0.00344176]
[1765092016189,5.92341287,89481.0,89480.0,0.00344176]
[1765092032398,5.06706781,89481.0,89480.0,0.00344176]
[1765092032656,3.40030781,89481.0,89480.0,0.00344176]
[1765092033370,3.28520781,89481.0,89480.0,0.00344176]
[1765092034298,3.42350781,89481.0,89480.0,0.00344176]
[1765092034612,3.37510781,89481.0,89480.0,0.00344176]
[1765092034795,3.4502038,89481.0,89480.0,0.00344176]
[1765092035005,3.22210781,89481.0,89480.0,0.00344176]
[1765092035406,3.22250781,89481.0,89480.0,0.00344176]
[1765092035737,3.01970781,89481.0,89480.0,0.00344176]
[1765092036160,3.00206781,89481.0,89480.0,0.00344176]
[1765092036366,0.65146621,89481.0,89480.0,0.00344176]
[1765092036587,0.07494971,89481.0,89480.0,0.16108176]
[1765092036810,0.03504448,89481.0,89480.0,0.16108176]
[1765092037004,0.02904448,89481.0,89480.0,0.16108176]
[1765092037245,0.02904448,89481.0,89480.0,0.15808176]
[1765092037246,0.02264,89481.0,89480.0,0.15808176]
[1765092037446,0.02164,89481.0,89480.0,0.15808176]
[1765092037579,0.01964,89481.0,89480.0,0.16708176]
[1765092038014,0.01864,89481.0,89480.0,0.15808176]
[1765092038328,0.02064,89481.0,89480.0,0.16808176]
[1765092044738,0.003,89481.0,89480.0,0.16808176]
[1765092044927,0.02064,89481.0,89480.0,0.16808176]
[1765092045732,0.003,89481.0,89480.0,0.16808176]
[1765092045934,0.02064,89481.0,89480.0,0.16808176]
[1765092048047,0.56715113,89481.0,89480.0,0.16808176]
[1765092048317,0.34364,89481.0,89480.0,0.16808176]
[1765092048526,0.56715113,89481.0,89480.0,0.16808176]
[1765092050465,0.34364,89481.0,89480.0,0.16808176]
[1765092059859,0.02064,89481.0,89480.0,0.16808176]
[1765092060463,0.003,89481.0,89480.0,0.19043312]
[1765092060661,0.02064,89481.0,89480.0,0.19043312]
[1765092064770,0.03795125,89501.0,89498.0,0.01117343]
[1765092065039,0.03795125,89501.0,89500.0,0.10211]
[1765092065456,0.03795125,89501.0,89500.0,0.20131]
[1765092065839,0.05559125,89501.0,89500.0,0.20131]
[1765092066188,0.05759125,89501.0,89500.0,0.0409]
[1765092066488,0.07979523,89501.0,89500.0,0.0409]
[1765092066700,0.05759125,89501.0,89500.0,0.0479]
[1765092066904,0.05959125,89501.0,89500.0,0.0479]
[1765092067062,0.08179523,89501.0,89500.0,0.0479]
[1765092067276,0.05959125,89501.0,89500.0,0.0479]
[1765092067608,0.05759125,89501.0,89500.0,0.0479]
[1765092067960,0.05959125,89501.0,89500.0,0.0479]
[1765092070164,0.08179523,89501.0,89500.0,0.0479]
[1765092071382,0.05959125,89501.0,89500.0,0.0479]
[1765092071901,0.05959125,89501.0,89500.0,0.20151]
[1765092074894,0.38259125,89501.0,89500.0,0.20151]
[1765092079349,0.38259125,89501.0,89500.0,0.11114]
[1765092079548,0.40479523,89501.0,89500.0,0.11114]
[1765092079848,0.40479523,89501.0,89500.0,0.0479]
[1765092079995,0.38259125,89501.0,89500.0,0.0479]
[1765092080822,0.34464,89501.0,89500.0,0.0479]
[1765092083096,0.34464,89501.0,89500.0,0.007]
[1765092085229,0.36684398,89501.0,89500.0,0.007]
[1765092086386,0.34464,89501.0,89500.0,0.007]
[1765092086921,0.34920398,89501.0,89500.0,0.007]
[1765092087097,0.36684398,89501.0,89500.0,0.007]
[1765092087280,1.643734,89501.0,89500.0,0.007]
[1765092087484,1.65726484,89501.0,89500.0,0.007]
[1765092087905,1.72027783,89501.0,89500.0,0.007]
[1765092088247,1.76425117,89501.0,89500.0,0.007]
[1765092093674,1.74204719,89501.0,89500.0,0.007]
[1765092093887,1.76425117,89501.0,89500.0,0.007]
[1765092094502,1.81326117,89501.0,89500.0,0.007]
[1765092094870,1.76425117,89501.0,89500.0,0.007]
[1765092095477,1.81326117,89501.0,89500.0,0.007]
[1765092096179,1.84325553,89501.0,89500.0,0.007]
[1765092096714,1.81326117,89501.0,89500.0,0.007]
[1765092100261,1.84322267,89501.0,89500.0,0.007]
[1765092101472,1.81326117,89501.0,89500.0,0.007]
[1765092101636,1.92296623,89501.0,89500.0,0.007]
[1765092102401,1.92096623,89501.0,89500.0,0.007]
[1765092102553,1.92496623,89501.0,89500.0,0.007]
[1765092102943,1.92096623,89501.0,89500.0,0.007]
[1765092103344,0.02220398,89481.0,89480.0,0.00044176]
[1765092103530,2.36333398,89481.0,89480.0,0.00044176]
[1765092103976,2.39690343,89481.0,89480.0,0.00044176]
[1765092104379,2.39890343,89481.0,89480.0,0.01044176]
[1765092105720,2.40090343,89481.0,89480.0,0.01044176]
[1765092112032,2.38326343,89481.0,89480.0,0.01044176]
[1765092112204,1.97872543,89481.0,89480.0,0.01044176]
[1765092114350,1.97823543,89481.0,89480.0,0.01044176]
[1765092114930,1.26380045,89481.0,89480.0,0.15428176]
[1765092115232,0.94016045,89481.0,89480.0,0.15428176]
[1765092117413,0.66655013,89481.0,89480.0,0.15428176]
[1765092117612,0.327,89481.0,89480.0,0.15428176]
[1765092117817,0.34464,89481.0,89480.0,0.17663312]
[1765092118241,0.327,89481.0,89480.0,0.17663312]
[1765092118400,0.004,89481.0,89480.0,0.15428176]
[1765092118601,0.004,89481.0,89480.0,0.17663312]
[1765092119545,0.004,89481.0,89480.0,0.16663312]
[1765092119696,0.002,89481.0,89480.0,0.16663312]
[1765092119896,0.05573732,89486.0,89483.0,0.0111753]
[1765092120147,0.01764,89489.0,89486.0,0.23467357]
[1765092120328,0.01764,89489.0,89488.0,0.05635]
[1765092120645,0.01764,89489.0,89488.0,0.14384]
[1765092121051,0.24113115,89489.0,89488.0,0.14384]
[1765092121345,0.01964,89489.0,89488.0,0.14384]
[1765092121556,0.01764,89489.0,89488.0,0.14384]
[1765092121726,0.0111753,89483.0,89480.0,0.04381176]
[1765092121926,0.22350952,89482.0,89480.0,0.04381176]
[1765092122352,0.22350952,89482.0,89481.0,0.05635]
[1765092122552,0.22350952,89482.0,89481.0,0.14384]
[1765092122553,0.24114952,89482.0,89481.0,0.14384]
[1765092123507,0.24214952,89482.0,89481.0,0.15184]
[1765092124314,0.24314952,89482.0,89481.0,0.15284]
[1765092125925,0.24314952,89482.0,89481.0,0.06535]
[1765092126560,0.24314952,89482.0,89481.0,0.15284]
[1765092132123,0.24314952,89482.0,89481.0,0.06535]
[1765092132329,0.24314952,89482.0,89481.0,0.15018]
[1765092134673,0.01964,89482.0,89481.0,0.15018]
[1765092139592,0.002,89482.0,89481.0,0.15018]
[1765092139804,0.01964,89482.0,89481.0,0.15018]
[1765092140852,0.01964,89482.0,89481.0,0.17253111]
[1765092141054,0.002,89482.0,89481.0,0.15018]
[1765092144151,0.002,89482.0,89481.0,0.17253111]
[1765092146053,0.002,89482.0,89481.0,0.15018]
[1765092148128,0.002,89482.0,89481.0,0.17253111]
[1765092148932,0.002,89482.0,89481.0,0.19483111]
[1765092149527,0.002,89482.0,89481.0,0.15018]
[1765092162631,0.002,89482.0,89481.0,0.17248]
[1765092162830,0.002,89482.0,89481.0,0.15018]
[1765092176916,0.002,89482.0,89481.0,0.37369113]
[1765092177122,0.01964,89482.0,89481.0,0.37369113]
[1765092183412,0.01964,89482.0,89481.0,0.15018]
[1765092183628,0.002,89482.0,89481.0,0.15018]
[1765092183817,0.01964,89482.0,89481.0,0.15018]
[1765092187718,0.01964,89482.0,89481.0,0.37369113]
[1765092191110,0.01964,89482.0,89481.0,0.39599113]
[1765092191677,0.01964,89482.0,89481.0,0.37369113]
[1765092196792,0.002,89482.0,89481.0,0.37369113]
[1765092216059,0.002,89482.0,89481.0,0.36894271]
[1765092237345,0.002,89482.0,89481.0,0.40250585]
[1765092245266,0.00188825,89482.0,89481.0,0.40250585]
[1765092255198,0.00188825,89482.0,89481.0,0.06060158]
[1765092256950,0.00188825,89482.0,89481.0,0.13067158]
[1765092258266,0.01952825,89482.0,89481.0,0.13067158]
[1765092272521,0.01952825,89482.0,89481.0,0.009]
[1765092274891,1.80846225,89482.0,89481.0,0.009]
[1765092275102,1.49331823,89482.0,89481.0,0.009]
[1765092275349,1.52688693,89482.0,89481.0,0.009]
[1765092275852,1.52588693,89482.0,89481.0,0.008]
[1765092276056,0.86565211,89481.0,89480.0,0.00044176]
[1765092276378,0.69434411,89481.0,89480.0,0.00044176]
[1765092276662,0.72791281,89481.0,89480.0,0.00044176]
[1765092277557,0.72891281,89481.0,89480.0,0.00644176]
[1765092278717,0.72991281,89481.0,89480.0,0.00644176]
[1765092279269,0.70770883,89481.0,89480.0,0.00644176]
[1765092280751,0.51485983,89481.0,89480.0,0.00644176]
[1765092281335,0.0355687,89481.0,89480.0,0.11986176]
[1765092281535,0.0532087,89481.0,89480.0,0.11986176]
[1765092281940,0.0532087,89481.0,89480.0,0.34337539]
[1765092282564,0.0532087,89481.0,89480.0,0.11986176]
[1765092283318,0.27671983,89481.0,89480.0,0.11986176]
[1765092283878,0.27671983,89481.0,89480.0,0.00644176]
[1765092286472,0.0532087,89481.0,89480.0,0.11042176]
[1765092296325,2.81893394,89481.0,89480.0,0.00644176]
[1765092296639,2.84113792,89481.0,89480.0,0.00644176]
[1765092296912,2.88105664,89481.0,89480.0,0.00644176]
[1765092297088,2.88005664,89481.0,89480.0,0.00644176]
[1765092297357,2.83913792,89481.0,89480.0,0.00044176]
[1765092297552,2.84113792,89481.0,89480.0,0.00044176]
[1765092297754,2.84213792,89481.0,89480.0,0.00144176]
[1765092297877,2.83913792,89481.0,89480.0,0.00044176]
[1765092298280,2.84713792,89481.0,89480.0,0.00144176]
[1765092301226,2.83672973,89481.0,89480.0,0.00144176]
[1765092301434,2.84712043,89481.0,89480.0,0.00144176]
[1765092302035,2.82948043,89481.0,89480.0,0.00144176]
[1765092302322,2.87702876,89481.0,89480.0,0.00144176]
[1765092304297,2.84712043,89481.0,89480.0,0.00144176]
[1765092305281,2.84678516,89481.0,89480.0,0.00144176]
[1765092306260,2.72966223,89481.0,89480.0,0.00144176]
[1765092306463,2.77718897,89481.0,89480.0,0.00144176]
[1765092309291,2.74730223,89481.0,89480.0,0.00144176]
[1765092312001,2.74730223,89481.0,89480.0,0.00064454]
[1765092314572,2.72966223,89481.0,89480.0,0.00064454]
[1765092314770,2.74730223,89481.0,89480.0,0.00064454]
[1765092314980,2.85700729,89481.0,89480.0,0.00064454]
[1765092316382,2.88689403,89481.0,89480.0,0.00064454]
[1765092318478,2.85700729,89481.0,89480.0,0.00064454]
[1765092323335,2.89693848,89481.0,89480.0,0.00064454]
[1765092324571,2.85700729,89481.0,89480.0,0.00064454]
[1765092325381,2.91694594,89481.0,89480.0,0.00064454]
[1765092326242,0.54658609,89451.0,89450.0,0.0002]
[1765092326476,0.56422609,89451.0,89450.0,0.0002]
[1765092327478,0.56622609,89451.0,89450.0,0.0072]
[1765092330789,1.62674,89451.0,89450.0,0.0072]
[1765092330978,2.60913658,89440.0,89420.0,0.0002]
[1765092331121,2.70400218,89440.0,89420.0,0.0002]
[1765092331320,2.76299358,89440.0,89420.0,0.0002]
[1765092331866,2.79262358,89440.0,89420.0,0.0002]
[1765092332078,2.75261218,89440.0,89420.0,0.0002]
[1765092332280,2.9022324,89440.0,89420.0,0.0002]
[1765092332486,2.9022324,89440.0,89439.0,0.00132966]
[1765092333266,2.86231724,89440.0,89439.0,0.00132966]
[1765092333674,2.86431724,89440.0,89439.0,0.00232966]
[1765092333889,2.9082324,89440.0,89439.0,0.00232966]
[1765092334272,2.86831724,89440.0,89439.0,0.00232966]
[1765092337174,2.89816901,89440.0,89439.0,0.00232966]
[1765092339252,2.86831724,89440.0,89439.0,0.00232966]
[1765092342087,2.74097218,89440.0,89439.0,0.00232966]
[1765092342266,2.75861218,89440.0,89439.0,0.00232966]
[1765092349530,2.74097218,89440.0,89439.0,0.00232966]
[1765092349740,2.75861218,89440.0,89439.0,0.00232966]
[1765092354889,2.7585572,89440.0,89439.0,0.00232966]
[1765092355047,2.86826226,89440.0,89439.0,0.00232966]
[1765092356159,2.89811403,89440.0,89439.0,0.00232966]
[1765092357166,2.86826226,89440.0,89439.0,0.00232966]
[1765092360254,2.92820091,89440.0,89439.0,0.00232966]
[1765092360896,0.56886508,89421.0,89420.0,0.0002]
[1765092361111,2.60575103,89421.0,89420.0,0.0002]
[1765092361237,2.62975812,89421.0,89420.0,0.0002]
[1765092361447,2.70111111,89421.0,89420.0,0.0002]
[1765092362074,2.70411111,89421.0,89420.0,0.0002]
[1765092362278,2.69828111,89421.0,89420.0,0.0012]
[1765092362673,2.70711111,89421.0,89420.0,0.0012]
[1765092363866,2.69828111,89421.0,89420.0,0.0012]
[1765092366567,2.73112839,89421.0,89420.0,0.00177473]
[1765092366972,2.73995839,89421.0,89420.0,0.00177473]
[1765092367147,2.72954244,89421.0,89420.0,0.00177473]
[1765092367355,2.73995763,89421.0,89420.0,0.00177473]
[1765092368782,2.51298437,89421.0,89420.0,0.00177473]
[1765092369132,1.83681837,89421.0,89420.0,0.00177473]
[1765092370245,1.85902235,89421.0,89420.0,0.00177473]
[1765092370908,1.77885936,89421.0,89420.0,0.00177473]
[1765092371127,1.64607436,89421.0,89420.0,0.00177473]
[1765092371923,1.54050536,89421.0,89420.0,0.00177473]
[1765092372128,1.35415336,89421.0,89420.0,0.00177473]
[1765092378439,1.46385842,89421.0,89420.0,0.00177473]
[1765092379038,1.35415336,89421.0,89420.0,0.00177473]
[1765092379263,1.33194938,89421.0,89420.0,0.03708473]
[1765092379620,1.33194938,89421.0,89420.0,0.00177473]
[1765092381688,0.76980038,89421.0,89420.0,0.08890473]
[1765092382527,0.78900436,89421.0,89420.0,0.03608473]
[1765092382997,0.78700436,89421.0,89420.0,0.03808473]
[1765092383810,0.78900436,89421.0,89420.0,0.03808473]
[1765092385680,0.78900436,89421.0,89420.0,0.08990473]
[1765092386425,0.76680038,89421.0,89420.0,0.03808473]
[1765092387813,0.01341519,89421.0,89420.0,0.08990473]
[1765092387999,0.003,89421.0,89420.0,0.31356833]
[1765092388710,0.002,89421.0,89420.0,0.31156833]
[1765092389083,0.002,89421.0,89420.0,0.31756833]
[1765092389331,0.001,89421.0,89420.0,0.31256833]
[1765092389865,0.07337732,89422.0,89420.0,0.31156833]
[1765092390022,0.07337732,89422.0,89421.0,0.08713]
[1765092391140,0.07437732,89422.0,89421.0,0.08713]
[1765092391345,0.07537732,89422.0,89421.0,0.09213]
[1765092391539,0.07437732,89422.0,89421.0,0.08713]
[1765092391941,0.07537732,89422.0,89421.0,0.09213]
[1765092392146,0.07437732,89422.0,89421.0,0.09213]
[1765092392446,0.07537732,89422.0,89421.0,0.09313]
[1765092393448,0.07537732,89422.0,89421.0,0.04131]
[1765092393832,0.39837732,89422.0,89421.0,0.04131]
[1765092394585,0.39837732,89422.0,89421.0,0.006]
[1765092395376,0.39837732,89422.0,89421.0,0.00654447]
[1765092395578,0.4205813,89422.0,89421.0,0.00654447]
[1765092399007,0.39837732,89422.0,89421.0,0.09367447]
[1765092407307,0.39837732,89422.0,89421.0,0.11921447]
[1765092417324,0.39837732,89422.0,89421.0,0.00654447]
[1765092417523,0.39837732,89422.0,89421.0,0.04037447]
[1765092417524,2.39837732,89422.0,89421.0,0.04037447]
[1765092417724,2.39837732,89422.0,89421.0,0.09059447]
[1765092419591,2.39837732,89422.0,89421.0,0.00654447]
[1765092419781,2.4205813,89422.0,89421.0,0.00654447]
[1765092420306,2.39837732,89422.0,89421.0,0.00654447]
[1765092422128,0.71498432,89422.0,89421.0,0.09059447]
[1765092424635,0.71498432,89422.0,89421.0,0.04037447]
[1765092426234,0.71498432,89422.0,89421.0,0.00654447]
[1765092426443,0.7371883,89422.0,89421.0,0.00654447]
[1765092427396,0.7371883,89422.0,89421.0,0.04037447]
[1765092428917,0.7371883,89422.0,89421.0,0.00654447]
[1765092429615,0.74760561,89422.0,89421.0,0.00654447]
[1765092430339,0.74760561,89422.0,89421.0,0.00054447]
[1765092430340,0.74560561,89422.0,89421.0,0.00054447]
[1765092430498,0.74760561,89422.0,89421.0,0.00054447]
[1765092430701,0.74960561,89422.0,89421.0,0.00154447]
[1765092431235,0.74760561,89422.0,89421.0,0.00154447]
[1765092432203,0.74560561,89422.0,89421.0,0.00054447]
[1765092432411,0.74760561,89422.0,89421.0,0.00054447]
[1765092432632,0.74960561,89422.0,89421.0,0.00154447]
[1765092434074,0.74960561,89422.0,89421.0,0.10301447]
[1765092434910,0.74960561,89422.0,89421.0,0.05630447]
[1765092435433,0.7391883,89422.0,89421.0,0.05630447]
[1765092441503,0.7391883,89422.0,89421.0,0.00154447]
[1765092443062,0.7391883,89422.0,89421.0,0.03233447]
[1765092443265,0.71698432,89422.0,89421.0,0.10301447]
[1765092444111,0.71698432,89422.0,89411.0,0.0111843]
[1765092444112,0.24591512,89401.0,89400.0,0.0002]
[1765092444409,2.71397674,89401.0,89400.0,0.0002]
[1765092444606,2.7379711,89401.0,89400.0,0.0002]
[1765092444767,2.7619411,89401.0,89400.0,0.0002]
[1765092445378,2.7629411,89401.0,89400.0,0.0032]
[1765092445580,2.7619411,89401.0,89400.0,0.0002]
[1765092445983,2.7669411,89401.0,89400.0,0.0012]
[1765092446194,2.74694674,89401.0,89400.0,0.0012]
[1765092446842,2.8566518,89401.0,89400.0,0.0012]
[1765092447210,2.84623703,89401.0,89400.0,0.0012]
[1765092447800,2.84784989,89401.0,89400.0,0.0012]
[1765092451605,2.72050483,89401.0,89400.0,0.0012]
[1765092451808,2.73814483,89401.0,89400.0,0.0012]
[1765092454338,2.71594085,89401.0,89400.0,0.0012]
[1765092454469,2.73814483,89401.0,89400.0,0.0012]
[1765092454670,2.71594085,89401.0,89400.0,0.0012]
[1765092454907,2.71594085,89401.0,89400.0,0.07933543]
[1765092454908,0.89461686,89401.0,89400.0,0.07933543]
[1765092455086,0.92772086,89401.0,89400.0,0.07933543]
[1765092455420,0.871905,89401.0,89400.0,0.07933543]
[1765092455622,0.304835,89401.0,89400.0,0.07933543]
[1765092456003,0.40863,89401.0,89400.0,0.07933543]
[1765092456324,0.39963,89401.0,89400.0,0.07833543]
[1765092456678,0.40163,89401.0,89400.0,0.07833543]
[1765092457441,0.39963,89401.0,89400.0,0.07833543]
[1765092457601,0.17691886,89401.0,89400.0,0.07833543]
[1765092457806,0.17891886,89401.0,89400.0,0.30304907]
[1765092458149,0.17691886,89401.0,89400.0,0.07833543]
[1765092458448,0.07412386,89401.0,89400.0,0.08133543]
[1765092458752,0.002,89401.0,89400.0,0.08133543]
[1765092462260,0.001,89401.0,89400.0,0.07833543]
[1765092462570,0.01764,89410.0,89407.0,0.0111848]
[1765092462729,0.01764,89410.0,89409.0,0.05131]
[1765092462930,0.01764,89410.0,89409.0,0.05167307]
[1765092463131,0.01764,89410.0,89409.0,0.09619307]
[1765092464163,0.01864,89410.0,89409.0,0.09619307]
[1765092464787,0.02064,89410.0,89409.0,0.09719307]
[1765092465506,0.01964,89410.0,89409.0,0.09719307]
[1765092465848,0.02064,89410.0,89409.0,0.09819307]
[1765092472891,0.02064,89410.0,89409.0,0.05367307]
[1765092473245,0.02064,89410.0,89409.0,0.09819307]
[1765092480585,0.003,89410.0,89409.0,0.09819307]
[1765092480788,0.003,89410.0,89409.0,0.12056218]
[1765092481185,0.003,89410.0,89409.0,0.09819307]
[1765092498493,0.003,89410.0,89409.0,0.32188419]
[1765092501566,0.003,89410.0,89409.0,0.09819307]
[1765092502996,0.003,89410.0,89409.0,0.32188419]
[1765092506181,0.02064,89410.0,89409.0,0.32188419]
[1765092507689,0.003,89410.0,89409.0,0.32188419]
[1765092508312,0.002,89410.0,89409.0,0.32088419]
[1765092508521,0.06,89411.0,89409.0,0.31988419]
[1765092508702,0.06,89411.0,89410.0,0.07225]
[1765092509039,0.06,89411.0,89410.0,0.09495167]
[1765092509239,0.06,89411.0,89410.0,0.07258281]
[1765092509733,0.061,89411.0,89410.0,0.07258281]
[1765092510231,0.06,89411.0,89410.0,0.07258281]
[1765092510992,0.061,89411.0,89410.0,0.09795167]
[1765092511658,0.062,89411.0,89410.0,0.09895167]
[1765092512743,0.062,89411.0,89410.0,0.12125167]
[1765092513559,0.002,89411.0,89410.0,0.12125167]
[1765092513764,0.002,89411.0,89410.0,0.09895167]
[1765092514509,0.001,89411.0,89410.0,0.09795167]
[1765092514917,0.40842273,89432.0,89427.0,0.0111823]
[1765092515144,0.2287258,89431.0,89430.0,0.02207]
[1765092515552,0.2287258,89431.0,89430.0,0.09432]
[1765092516200,0.217544,89431.0,89430.0,0.09432]
[1765092517374,0.221544,89431.0,89430.0,0.09532]
[1765092517959,0.223544,89431.0,89430.0,0.09632]
[1765092520397,0.223544,89431.0,89430.0,0.3199586]
[1765092520584,0.223544,89431.0,89430.0,0.09632]
[1765092524125,0.22515686,89431.0,89430.0,0.09632]
[1765092524329,0.22515686,89431.0,89430.0,0.05246]
[1765092531895,0.22515686,89431.0,89430.0,0.02407]
[1765092532401,0.22515686,89431.0,89430.0,0.05149]
[1765092532548,0.22515686,89431.0,89430.0,0.09082]
[1765092535582,0.22515686,89431.0,89430.0,0.05149]
[1765092536004,0.65688466,89431.0,89430.0,0.02407]
[1765092536199,0.54815686,89431.0,89430.0,0.02407]
[1765092538848,0.54815686,89431.0,89430.0,0.002]
[1765092539826,0.58174345,89431.0,89430.0,0.002]
[1765092544770,0.58174345,89431.0,89430.0,0.06869]
[1765092554529,0.58013059,89431.0,89430.0,0.2923286]
[1765092554686,0.34664,89431.0,89430.0,0.2923286]
[1765092554886,0.02364,89431.0,89430.0,0.2923286]
[1765092555109,0.006,89431.0,89430.0,0.2923286]
[1765092558443,0.004,89431.0,89430.0,0.2913286]
[1765092558648,0.05,89432.0,89430.0,0.2903286]
[1765092558813,0.05,89432.0,89431.0,0.0665]
[1765092560373,0.051,89432.0,89431.0,0.0665]
[1765092560554,0.052,89432.0,89431.0,0.0675]
[1765092560978,0.051,89432.0,89431.0,0.0675]
[1765092561159,0.051,89432.0,89431.0,0.0685]
[1765092580947,0.051,89432.0,89431.0,0.0908636]
[1765092581698,0.051,89432.0,89431.0,0.1244432]
[1765092582043,0.051,89432.0,89431.0,0.1467432]
[1765092582241,0.001,89432.0,89431.0,0.1467432]
[1765092587886,0.001,89432.0,89431.0,0.1244432]
[1765092588103,0.00092357,89436.0,89434.0,0.24592859]
[1765092588303,0.00092357,89436.0,89435.0,0.0653726]
[1765092588498,0.00092357,89436.0,89435.0,0.1049026]
[1765092588703,0.00092357,89436.0,89435.0,0.1225426]
[1765092589436,0.00192357,89436.0,89435.0,0.1225426]
[1765092590113,0.00392357,89436.0,89435.0,0.1225426]
[1765092590449,0.00192357,89436.0,89435.0,0.1225426]
[1765092590674,0.00292357,89436.0,89435.0,0.1235426]
[1765092590871,0.00392357,89436.0,89435.0,0.1245426]
[1765092594942,0.00392357,89436.0,89435.0,0.1468426]
[1765092595464,3.57e-06,89436.0,89435.0,0.1468426]
[1765092596070,3.57e-06,89436.0,89435.0,0.1458426]
[1765092596365,0.00100357,89436.0,89435.0,0.1478426]
[1765092596762,0.001,89436.0,89435.0,0.1468426]
[1765092597161,0.002,89436.0,89435.0,0.1478426]
[1765092601559,0.002,89436.0,89435.0,0.1255426]
[1765092602500,0.002,89436.0,89435.0,0.1478426]
[1765092602736,0.002,89436.0,89435.0,0.10318]
[1765092603121,0.002,89436.0,89435.0,0.08554]
[1765092603523,0.002,89436.0,89435.0,0.09671992]
[1765092603728,0.002,89436.0,89435.0,0.1079026]
[1765092604339,0.002,89436.0,89435.0,0.08554]
[1765092608674,0.001,89436.0,89435.0,0.08354]
[1765092608851,0.002,89436.0,89435.0,0.08354]
[1765092609056,0.55123645,89436.0,89435.0,0.02125]
[1765092609367,0.55123645,89436.0,89435.0,0.04666]
[1765092609568,0.55123645,89436.0,89435.0,0.08144]
[1765092613394,0.55123645,89436.0,89435.0,0.04666]
[1765092613635,0.55123645,89436.0,89435.0,0.02125]
[1765092613849,0.57344043,89436.0,89435.0,0.02125]
[1765092614434,0.55123645,89436.0,89435.0,0.02125]
[1765092614837,0.54823645,89436.0,89435.0,0.01925]
[1765092615170,0.32761286,89436.0,89435.0,0.04448]
[1765092615326,0.32661286,89436.0,89435.0,0.08181]
[1765092615834,0.32761286,89436.0,89435.0,0.08181]
[1765092616033,0.32961286,89436.0,89435.0,0.08281]
[1765092630860,0.32961286,89436.0,89435.0,0.04548]
[1765092634867,0.32961286,89436.0,89435.0,0.02125]
[1765092636957,0.32961286,89436.0,89435.0,0.04548]
[1765092637332,0.32961286,89436.0,89435.0,0.08281]
[1765092649702,0.32961286,89436.0,89435.0,0.04548]
[1765092649898,1.96028884,89436.0,89435.0,0.02125]
[1765092652841,2.01303053,89436.0,89435.0,0.002]
[1765092653006,2.0696628,89436.0,89435.0,0.002]
[1765092653372,2.0917328,89436.0,89435.0,0.002]
[1765092653748,2.01678713,89436.0,89435.0,0.002]
[1765092654104,2.01378713,89436.0,89435.0,0.001]
[1765092654305,2.01878713,89436.0,89435.0,0.002]
[1765092654710,2.01678713,89436.0,89435.0,0.001]
[1765092654912,2.01878713,89436.0,89435.0,0.002]
[1765092655429,2.01678713,89436.0,89435.0,0.001]
[1765092655961,2.01978713,89436.0,89435.0,0.002]
[1765092661089,2.01977114,89436.0,89435.0,0.002]
[1765092661292,2.08229413,89436.0,89435.0,0.002]
[1765092661800,2.16979521,89436.0,89435.0,0.002]
[1765092662096,2.19199919,89436.0,89435.0,0.002]
[1765092662852,2.08229413,89436.0,89435.0,0.002]
[1765092668916,2.09993413,89436.0,89435.0,0.002]
[1765092689743,2.09991774,89436.0,89435.0,0.002]
[1765092703066,1.67185277,89436.0,89435.0,0.002]
[1765092704805,1.67185277,89436.0,89435.0,0.0563]
[1765092705010,1.65421277,89436.0,89435.0,0.0563]
[1765092705194,1.67185277,89436.0,89435.0,0.0563]
[1765092705393,1.63791177,89436.0,89435.0,0.0236]
[1765092706450,1.66011575,89436.0,89435.0,0.002]
[1765092720321,1.80061201,89436.0,89435.0,0.002]
[1765092722288,1.86054932,89436.0,89435.0,0.002]
[1765092722748,1.79761333,89436.0,89435.0,0.001]
[1765092722950,0.22370613,89403.0,89402.0,0.01526]
[1765092723119,0.24134613,89403.0,89402.0,0.01526]
[1765092723316,0.24134613,89403.0,89402.0,0.06723]
[1765092724118,0.24234613,89403.0,89402.0,0.06823]
[1765092724321,0.24334613,89403.0,89402.0,0.07323]
[1765092727900,0.01964,89403.0,89402.0,0.07323]
[1765092728076,0.07537732,89403.0,89402.0,0.29693864]
[1765092732189,0.07537732,89403.0,89402.0,0.07323]
[1765092749135,0.01964,89403.0,89402.0,0.07323]
[1765092750984,0.01964,89403.0,89402.0,0.29693864]
[1765092759587,0.01964,89403.0,89402.0,0.07323]
[1765092765331,0.24334613,89403.0,89402.0,0.07323]
[1765092765536,0.01964,89403.0,89402.0,0.07323]
[1765092770466,0.24334613,89403.0,89402.0,0.07323]
[1765092771101,0.01964,89403.0,89402.0,0.07323]
[1765092775438,0.24334613,89403.0,89402.0,0.07323]
[1765092775616,0.01964,89403.0,89402.0,0.07323]
[1765092777184,0.04184398,89403.0,89402.0,0.07323]
[1765092777915,0.01964,89403.0,89402.0,0.07323]
[1765092779203,0.01964,89403.0,89402.0,0.02126]
[1765092779504,0.01964,89403.0,89402.0,0.006]
[1765092780711,0.04184398,89403.0,89402.0,0.006]
[1765092780859,0.06415208,89403.0,89402.0,0.006]
[1765092781811,0.70964466,89403.0,89402.0,0.006]
[1765092781992,0.72480054,89403.0,89402.0,0.006]
[1765092782967,0.73520923,89403.0,89402.0,0.006]
[1765092783197,0.72480054,89403.0,89402.0,0.006]
[1765092783808,0.73520605,89403.0,89402.0,0.006]
[1765092784632,0.79772904,89403.0,89402.0,0.006]
[1765092784973,0.79672904,89403.0,89402.0,0.005]
[1765092785203,0.70110597,89403.0,89402.0,0.005]
[1765092785612,2.40772697,89401.0,89400.0,0.0002]